[Event "Grandiscacchi GM Festival 2022"]
[Site "Montebelluna"]
[Date "2022.05.17"]
[Round "3.3"]
[White "Fishchuk, Vladyslav"]
[Black "Rozen, Eytan"]
[Result "0-1"]
[ECO "D80"]
[WhiteElo "2102"]
[BlackElo "2425"]
[Annotator "TA"]
[PlyCount "82"]
[EventDate "2022.05.17"]
[EventType "swiss"]
[EventCountry "ITA"]
[SourceTitle "playchess.com"]
[Source "ChessBase"]
[SourceQuality "1"]
[TimeControl "40/3600+30:1800+30"]

{[%evp 9,82,-34,-27,-58,-56,-64,-60,-177,-78,129,-81,-71,-71,-91,9,-33,-30,-33,93,32,18,34,35,38,25,42,41,-87,-58,-79,-84,-78,-89,-160,-151,-330,-329,-330,-322,-314,-314,-337,-337,-337,-337,-330,-314,-315,-314,-647,-335,-569,-531,-568,-552,-1160,-923,-1389,-1192,-1061,-1061,-29976,-29977,-29979,-29980,-29983,-1373,-660,-652,-29961,-29961,-29968,-29969,-8776,-4947]} 1. d4 {[%emt 0:00:02]} Nf6 {[%emt 0:00:10]} 2. c4 {[%emt 0:00:04]} g6 {[%emt 0:00:04]} 3. Nc3 {[%emt 0:00:05]} d5 {[%emt 0:00:04]} 4. h4 {[%emt 0:00:06]} c5 {[%emt 0:00:47]} 5. Nf3 {[%emt 0:01:01]} cxd4 {[%emt 0:03:05]} 6. Nxd4 {[%emt 0:04:23] D80: Grünfeld: Unusual White 4th moves and 4 Bg5.} e5 {[%emt 0:06:08] Inhibits Bf4.} 7. Nf3 {[%emt 0:00:14][%csl LRd5,LRe5][%cal Rc4d5]} d4 {[%emt 0:02:04] [#]} 8. Nxe5 $146 {[%emt 0:12:54]} ({Predecessor:} 8. Nb1 Nc6 9. h5 e4 10. Ng5 e3 11. fxe3 Qa5+ 12. Bd2 Qxg5 13. Qa4 dxe3 14. Bc3 {0-1 (21) Chitlange,S (2167)-Novik,M (2434) Chess.com INT 2020}) 8... dxc3 {[%emt 0:10:19]} (8... Nc6 9. Nd5 $15 (9. Nxc6 bxc6 10. Nb1 Bb4+ 11. Bd2 Rb8 $15)) (8... Qd6 $1 $19 {[%cal Rd6e5]} 9. Qa4+ Nbd7 10. Nxd7 Bxd7) 9. Qxd8+ $17 {[%emt 0:00:07]} Kxd8 {[%emt 0:00:08]} 10. Nxf7+ {[%emt 0:00:05]} Ke8 {[%emt 0:00:07]} 11. Nxh8 {[%emt 0:00:07]} Bg7 {[%emt 0:01:56] [#]} ({Better is} 11... cxb2 $1 $17 12. Bxb2 Bb4+ 13. Kd1 Ne4) 12. Nxg6 $1 {[%emt 0:00:19] And now Nf4 would win.} Ne4 $1 {[%emt 0:00:49]} 13. Rb1 {[%emt 0:04:08] Black must now prevent Nf4.} Bf5 {[%emt 0:10:06] [#]} (13... c2 $15 {stays ahead.} 14. Ra1 hxg6) 14. g4 $1 {[%emt 0:00:30]} Bxg6 $14 {[%emt 0:00:48]} (14... c2 15. Ra1) 15. h5 $1 {[%emt 0:00:20]} c2 {[%emt 0:13:55]} 16. Ra1 {[%emt 0:00:12]} Bf7 {[%emt 0:03:11]} 17. Bg2 {[%emt 0:00:11]} Nc5 {[%emt 0:00:40]} 18. O-O {[%emt 0:04:00]} (18. Kd2 $14) 18... Nc6 {[%emt 0:02:18] Black is more active.} ({Much less strong is} 18... Bxc4 19. Be3 Bxb2 20. Bxc5 $16) 19. Bxc6+ {[%emt 0:02:57]} bxc6 {[%emt 0:00:04]} 20. Be3 {[%emt 0:00:26]} Bxb2 {[%emt 0:01:13]} 21. Bxc5 {[%emt 0:00:18]} (21. Rac1 $142 Bxc1 22. Rxc1) 21... Bxa1 $17 {[%emt 0:00:13]} 22. Rxa1 {[%emt 0:00:17][%mdl 4096] Endgame KRB-KRB. This costs White the game.} (22. Rc1 $17 {was the only defense.}) 22... Rd8 $19 {[%emt 0:00:55]} 23. Rf1 {[%emt 0:39:14]} Rd1 {[%emt 0:00:49]} ({But not} 23... Bxc4 $2 24. Be3 Rd1 25. Kg2 $19) 24. Be3 {[%emt 0:00:00] Prevents c1Q.} Bxc4 {[%emt 0:00:13]} 25. Kg2 {[%emt 0:00:00]} Bxe2 {[%emt 0:03:15]} 26. Rg1 {[%emt 0:00:00]} Bxg4 {[%emt 0:02:00]} 27. h6 {[%emt 0:00:00] [#]} Bf3+ $1 {[%emt 0:04:04][%mdl 512]} 28. Kh2 {[%emt 0:00:00]} Bd5 {[%emt 0:00:40]} 29. a3 $2 {[%emt 0:00:00]} (29. Rg7) 29... a6 {[%emt 0:00:36][%cal Ba7a6,Ba6a5][%mdl 32]} 30. Bf4 $2 {[%emt 0:00:00]} (30. Rg7) 30... Kf7 {[%emt 0:00:00]} 31. Be3 {[%emt 0:00:00]} Ke6 {[%emt 0:00:00]} 32. a4 {[%emt 0:00:00]} a5 {[%emt 0:00:00][%cal Oc6c5] ...c5! is the strong threat.} 33. Bg5 {[%emt 0:00:00]} Kf5 {[%emt 0:00:00] ( -> ...Rxg1)} 34. Be3 {[%emt 0:00:00]} Ke4 {[%emt 0:00:00]} 35. Rg7 {[%emt 0:00:00]} c1=Q {[%emt 0:00:00]} 36. Bxc1 {[%emt 0:00:00]} Rxc1 {[%emt 0:00:00]} 37. Rxh7 {[%emt 0:00:00] KRB-KR} Kf5 {[%emt 0:00:00]} (37... Kf4 $142 38. f3 Kxf3 39. Rf7+ Kg4 40. Rg7+ Kf4 41. Rg2 Bxg2 42. Kxg2 Re1 43. h7 Re8 44. Kh2 Rh8 45. Kg2 Rxh7 46. Kf2 Re7 47. Kg2 Re2+ 48. Kf1 Kf3 49. Kg1 Rd2 50. Kh1 Kg3 51. Kg1 Rd1#) 38. f3 {[%emt 0:00:00]} Kg6 {[%emt 0:00:00]} 39. Rh8 {[%emt 0:00:00]} Rc4 {[%emt 0:00:00]} 40. Kh3 {[%emt 0:00:00]} Rxa4 {[%emt 0:00:00]} 41. h7 {[%emt 0:00:00]} Kg7 {[%emt 0:17:08] Weighted Error Value: White=0.98/Black=0.46} 0-1

[Event "Grandiscacchi GM Festival 2022"]
[Site "Montebelluna"]
[Date "2022.05.17"]
[Round "3.4"]
[White "Kalogridis, Antonios"]
[Black "Ojas Kulkarni"]
[Result "1-0"]
[ECO "D90"]
[WhiteElo "2306"]
[BlackElo "2235"]
[Annotator "TA"]
[PlyCount "97"]
[EventDate "2022.05.17"]
[EventType "swiss"]
[EventCountry "ITA"]
[SourceTitle "playchess.com"]
[Source "ChessBase"]
[SourceQuality "1"]
[TimeControl "40/3600+30:1800+30"]

{[%evp 9,97,0,0,0,0,0,0,0,0,0,0,0,0,0,0,0,0,0,0,11,4,0,107,75,58,68,56,63,46,39,41,10,66,62,89,81,114,123,287,278,263,239,212,98,81,63,299,8,8,8,8,18,102,0,101,0,0,0,0,0,0,0,416,416,370,375,372,267,373,0,253,0,299,0,0,0,231,164,164,191,168,160,160,0,29966,29966,29975,29976,29974,29974]} 1. d4 {[%emt 0:00:01]} Nf6 {[%emt 0:00:06]} 2. c4 {[%emt 0:00:02]} g6 {[%emt 0:00:06]} 3. Nc3 {[%emt 0:00:02]} d5 {[%emt 0:00:06]} 4. Nf3 {[%emt 0:00:03]} Bg7 {[%emt 0:00:05]} 5. h4 {[%emt 0:00:03]} dxc4 {[%emt 0:01:12]} 6. e4 {[%emt 0:00:06] D90: Grünfeld: 4 Nf3 Bg7 sidelines.} c5 {[%emt 0:00:05]} 7. d5 {[%emt 0:00:02]} O-O {[%emt 0:00:07]} 8. Bxc4 {[%emt 0:00:11] The position is equal.} b5 {[%emt 0:00:09]} 9. Bxb5 {[%emt 0:00:04] Black should prevent 0-0.} Nxe4 $1 {[%emt 0:00:05]} 10. Nxe4 {[%emt 0:00:06]} Qa5+ {[%emt 0:00:05]} 11. Nc3 {[%emt 0:00:06]} Bxc3+ {[%emt 0:00:06][%mdl 64] Remove Defender} 12. bxc3 {[%emt 0:00:03]} Qxb5 {[%emt 0:00:06]} 13. h5 {[%emt 0:00:08]} Qc4 {[%emt 0:00:59]} 14. hxg6 {[%emt 0:00:06]} fxg6 {[%emt 0:00:44] [#]} 15. Bh6 $146 {[%emt 0:00:19]} ({Predecessor:} 15. Rh4 Qxc3+ 16. Bd2 Qd3 17. Bh6 Qxd1+ 18. Rxd1 Rf5 19. Re4 Nd7 20. Rxe7 Rh5 21. Be3 {½-½ (34) Fedoseev,V (2674)-Chigaev,M (2619) Moscow 2020}) 15... Ba6 {[%emt 0:10:07]} 16. Qd2 {[%emt 0:12:57]} Qe4+ {[%emt 0:16:42]} 17. Qe3 {[%emt 0:02:19]} Qxe3+ {[%emt 0:01:02]} 18. fxe3 {[%emt 0:00:43]} Rd8 {[%emt 0:00:08]} 19. O-O-O $36 {[%emt 0:06:51][%mdl 2048] White has good play.} Nd7 {[%emt 0:00:19]} 20. e4 {[%emt 0:01:09]} Be2 {[%emt 0:11:41]} (20... Rdb8 $11) 21. Rd2 $14 {[%emt 0:02:27]} Bxf3 {[%emt 0:00:09]} 22. gxf3 {[%emt 0:00:02]} c4 {[%emt 0:00:28]} 23. Bg5 {[%emt 0:04:23] White is much more active.} Ne5 $2 {[%emt 0:00:19]} (23... Re8 $16 {keeps fighting.}) 24. Bxe7 $18 {[%emt 0:01:12]} Rd7 {[%emt 0:00:02]} 25. Bf6 {[%emt 0:02:48]} Nd3+ {[%emt 0:00:17] [#]} 26. Kc2 {[%emt 0:01:16]} (26. Rxd3 $1 $18 {[%mdl 512] is the precise move to win.} cxd3 27. Be5) 26... Rf8 $16 {[%emt 0:01:03]} 27. Bd4 {[%emt 0:03:38] aiming for Rxd3.} Rb7 $2 {[%emt 0:09:50]} (27... Rxf3 $14 28. Rb1 Rf8) 28. Rb1 $2 {[%emt 0:02:43]} (28. Rxd3 $18 cxd3+ 29. Kxd3) 28... Rxb1 $11 {[%emt 0:00:10]} 29. Kxb1 {[%emt 0:00:06]} Rxf3 {[%emt 0:00:16][%mdl 4096] Endgame KRB-KRN} 30. Kc2 {[%emt 0:00:00]} (30. Bxa7 $2 Rf1+ 31. Rd1 Rxd1+ $19) 30... a6 {[%emt 0:00:00]} (30... h5 $11) 31. Re2 {[%emt 0:00:00]} ({White should play} 31. Rd1 $1 $16 {[%cal Rd1b1]}) 31... Nf4 {[%emt 0:00:00]} (31... Kf7 $11 {keeps the balance.}) 32. Rf2 {[%emt 0:00:00]} (32. Re1 $1 $16 {[%cal Re1b1]}) 32... Rxf2+ {[%emt 0:00:00]} 33. Bxf2 {[%emt 0:00:00] KB-KN} Nd3 {[%emt 0:00:00]} 34. Be3 {[%emt 0:00:00]} Kf7 {[%emt 0:00:00]} 35. Kd2 {[%emt 0:00:00]} h5 $2 {[%emt 0:02:07][%mdl 8192]} (35... Kf6 $11 {and Black stays safe.}) 36. Bg5 $18 {[%emt 0:00:00]} Ne5 {[%emt 0:02:44]} 37. Ke3 {[%emt 0:00:00] Against Nf3} Ke8 {[%emt 0:00:08]} 38. Bf4 {[%emt 0:00:00]} Nd3 {[%emt 0:02:52]} 39. Bg5 {[%emt 0:00:59] Strongly threatening Kd4.} Ne5 $1 {[%emt 0:00:02]} 40. Bf4 {[%emt 0:01:11]} Nd3 {[%emt 0:00:06]} 41. Bb8 $2 {[%emt 0:34:17]} (41. Bh2 $18 {e5 is the strong threat.} h4 42. Kf3) 41... g5 $1 $11 {[%emt 0:31:13]} 42. e5 {[%emt 0:00:08][%cal Be4e5,Be5e6][%mdl 32]} h4 $2 {[%emt 0:00:37]} (42... Kd7 $2 43. e6+ Ke7 44. Bc7 $18) (42... Nf4 $1 $11 43. Ke4 h4) 43. e6 $1 $18 {[%emt 0:03:15] Black must now prevent Ke4.} h3 {[%emt 0:01:01][%cal Od3f4] [#]} (43... Ke7 $2 44. Kf3 $18) 44. Bh2 {[%emt 0:02:23] Prevents Nf4. Hoping for Ke4.} (44. Bd6 Nf4 45. Bxf4 gxf4+ 46. Kf2 (46. Kxf4 $2 h2) 46... Ke7 $11) 44... Nf4 {[%emt 0:01:00]} (44... Ke7 45. Kd4 Nf2 46. Kc5 $16) 45. Ke4 {[%emt 0:00:11] Threatens to win with Ke5.} ({Inferior is} 45. Bxf4 gxf4+ 46. Kf3 (46. Kxf4 h2 $19) 46... Ke7 $11) 45... Ke7 {[%emt 0:07:43] [#]} 46. Ke5 {[%emt 0:00:09]} ({White has to play} 46. Kd4 $1 $16 {[%cal Rd4c4]}) 46... Nd3+ $2 {[%emt 0:01:29][%mdl 8192]} (46... Ng6+ $11 47. Ke4 Nh4) 47. Kf5 {[%emt 0:00:06] White mates.} Nf4 {[%emt 0:01:38]} 48. d6+ $1 {[%emt 0:00:06]} Kxd6 {[%emt 0:00:04]} 49. Kxg5 {[%emt 0:00:04] Weighted Error Value: White=0.53/Black=0.53} 1-0

[Event "Grandiscacchi GM Festival 2022"]
[Site "Montebelluna"]
[Date "2022.05.17"]
[Round "3.5"]
[White "Shahil Dey"]
[Black "Siddharth, Jagadeesh"]
[Result "1/2-1/2"]
[ECO "B15"]
[WhiteElo "2369"]
[BlackElo "2393"]
[Annotator "TA"]
[PlyCount "56"]
[EventDate "2022.05.17"]
[EventType "swiss"]
[EventCountry "ITA"]
[SourceTitle "playchess.com"]
[Source "ChessBase"]
[SourceQuality "1"]
[TimeControl "40/3600+30:1800+30"]

{[%evp 14,56,31,38,44,33,44,54,60,28,37,22,34,12,11,15,45,44,37,37,31,4,3,0,4,0,49,0,-8,0,-10,-6,8,0,0,0,0,0,0,-15,0,0,0,0,13]} 1. e4 {[%emt 0:00:03]} c6 {[%emt 0:01:11]} 2. d4 {[%emt 0:00:11]} d5 {[%emt 0:00:10]} 3. Nd2 {[%emt 0:00:10]} dxe4 {[%emt 0:00:18]} 4. Nxe4 {[%emt 0:00:08]} Nf6 {[%emt 0:00:27]} 5. Nxf6+ {[%emt 0:00:24]} exf6 {[%emt 0:00:27]} 6. c3 {[%emt 0:00:07]} Bd6 {[%emt 0:00:11]} 7. Bd3 {[%emt 0:00:07]} O-O {[%emt 0:00:17]} 8. Qc2 {[%emt 0:00:06] Active counter play!} Re8+ {[%emt 0:00:21] B15: Caro-Kann: 3 Nc3: 3...g6 and 3...dxe4 4 Nxe4 Nf6 5 Nxf6+ exf6.} 9. Ne2 {[%emt 0:00:10]} h5 {[%emt 0:00:38]} 10. O-O {[%emt 0:00:27]} h4 {[%emt 0:00:38] White is slightly better.} 11. Bf4 {[%emt 0:00:35]} Na6 {[%emt 0:00:31]} (11... Rxe2 $2 12. Qxe2 Bxf4 13. Qe4 $18) 12. Rfe1 {[%emt 0:01:41][%cal Od4d5]} Nc7 {[%emt 0:00:27]} (12... Rxe2 $2 13. Qxe2 Bf5 14. Bxf5 $18) 13. Qd2 {[%emt 0:00:09] [#]} Bxf4 $146 {[%emt 0:00:42]} ({Predecessor:} 13... Bf8 14. c4 Ne6 15. h3 Nxf4 16. Qxf4 f5 17. Bxf5 Bxf5 18. Qxf5 Bb4 19. Nc3 Qxd4 20. Rxe8+ Rxe8 {0-1 (26) Shahil,D (2400)-Gukesh,D (2614) New Delhi 2022}) 14. Qxf4 {[%emt 0:01:44]} g5 {[%emt 0:00:12]} 15. Qf3 {[%emt 0:09:05]} Kg7 $1 {[%emt 0:00:23]} 16. c4 {[%emt 0:06:28] Inhibits Qd5.} Qd6 {[%emt 0:09:43]} 17. Rad1 {[%emt 0:06:59]} ({Of course not} 17. Qh5 Rh8 18. Qf3 h3 $11) 17... Bd7 {[%emt 0:04:19]} (17... g4 $5 18. Qf4 Qxf4 19. Nxf4 Rxe1+ 20. Rxe1 Be6 $14) 18. Bb1 {[%emt 0:03:37]} Rad8 {[%emt 0:09:30][%cal Ba8d8,Bd8e8,Be8e5][%mdl 32]} ({But not} 18... Rh8 19. Nc3 $16) 19. h3 {[%emt 0:03:03]} b6 {[%emt 0:19:26]} (19... Ne6 $11) 20. d5 {[%emt 0:07:50]} (20. Qd3 $14 f5 21. b3) 20... cxd5 $11 {[%emt 0:03:48] The position is equal.} 21. cxd5 {[%emt 0:00:09]} Re5 {[%emt 0:04:11][%cal Rc7d5]} 22. Nc3 {[%emt 0:01:34] [#] aiming for Ne4.} Rxe1+ {[%emt 0:02:37]} 23. Rxe1 {[%emt 0:00:06]} Re8 {[%emt 0:00:12][%cal Re8e1]} 24. Rd1 {[%emt 0:04:42]} Nb5 {[%emt 0:04:19]} 25. Qd3 {[%emt 0:09:10]} Nxc3 {[%emt 0:00:45]} 26. bxc3 {[%emt 0:05:32]} Re5 {[%emt 0:01:12]} 27. Qh7+ {[%emt 0:00:56]} Kf8 {[%emt 0:00:02]} 28. c4 {[%emt 0:01:23]} Ke7 {[%emt 0:01:01] Weighted Error Value: White=0.11 (very precise) /Black=0.06 (flawless)} 1/2-1/2

[Event "Grandiscacchi GM Festival 2022"]
[Site "Montebelluna"]
[Date "2022.05.17"]
[Round "4.1"]
[White "Loiseau, Quentin"]
[Black "Pantsulaia, Levan"]
[Result "1/2-1/2"]
[ECO "A43"]
[WhiteElo "2445"]
[BlackElo "2587"]
[Annotator "TA"]
[PlyCount "67"]
[EventDate "2022.05.17"]
[EventType "swiss"]
[EventCountry "ITA"]
[SourceTitle "playchess.com"]
[Source "ChessBase"]
[SourceQuality "1"]
[TimeControl "40/3600+30:1800+30"]

{[%evp 11,67,37,65,66,83,65,70,76,83,85,77,92,79,64,77,69,74,69,66,76,94,58,58,37,37,37,39,42,38,28,28,28,35,35,36,25,53,11,53,53,53,53,54,54,54,48,48,48,60,48,97,69,72,57,59,54,154,0]} 1. d4 {[%emt 0:00:02]} c5 {[%emt 0:10:44]} 2. d5 {[%emt 0:00:08]} g6 {[%emt 0:00:15]} 3. c4 {[%emt 0:00:08]} Bg7 {[%emt 0:00:07]} 4. Nc3 {[%emt 0:00:06]} d6 {[%emt 0:00:06]} 5. e4 {[%emt 0:00:15]} e6 {[%emt 0:00:32]} 6. Bd3 {[%emt 0:00:52]} Ne7 {[%emt 0:01:20]} 7. h4 {[%emt 0:02:08][%cal Bh2h4,Bh4h5][%mdl 32] A43: Schmid Benoni.} h6 {[%emt 0:04:30] [#]} 8. h5 $146 {[%emt 0:00:47]} ({Predecessor:} 8. Be3 exd5 9. cxd5 a6 10. a4 Nd7 11. Nf3 Nf6 12. Nd2 Ng4 {½-½ (12) Volkov,S (2612)-Kokarev,D (2608) Serpukhov 2018}) 8... g5 {[%emt 0:01:53]} 9. f4 {[%emt 0:00:34] White is slightly better.} gxf4 {[%emt 0:00:46]} 10. Bxf4 {[%emt 0:00:25]} Bxc3+ {[%emt 0:00:07]} 11. bxc3 {[%emt 0:00:14] Qd2 is the strong threat.} e5 {[%emt 0:00:06]} 12. Be3 {[%emt 0:01:11][%cal Bf4e3,Be3f2,Bf2h4][%mdl 32]} Ng8 {[%emt 0:00:59]} 13. Nf3 {[%emt 0:01:28]} Nd7 {[%emt 0:01:13]} 14. O-O {[%emt 0:07:42] 0x0.00226a51d9dbdp-1022s more active pieces.} Ndf6 {[%emt 0:03:17]} 15. Nh2 {[%emt 0:01:03] Against Ng4} Qa5 {[%emt 0:01:09]} 16. Qf3 {[%emt 0:04:36]} Rh7 {[%emt 0:02:15]} 17. Bf2 {[%emt 0:05:00] [#] Strongly threatening Bh4.} Rg7 $1 {[%emt 0:01:01]} 18. Bh4 {[%emt 0:01:19]} Nh7 {[%emt 0:01:39]} 19. Be2 {[%emt 0:02:50]} Bd7 {[%emt 0:02:57]} 20. Qe3 {[%emt 0:08:10]} f6 {[%emt 0:01:18]} 21. Rf2 {[%emt 0:01:18]} O-O-O {[%emt 0:00:32]} 22. Kh1 {[%emt 0:02:30]} Kb8 {[%emt 0:04:25]} 23. Qd2 {[%emt 0:07:55]} Bc8 {[%emt 0:00:31]} 24. Raf1 {[%emt 0:01:11]} Ng5 {[%emt 0:01:10]} 25. Qc2 {[%emt 0:02:33]} Qc7 {[%emt 0:01:08]} 26. Ng4 {[%emt 0:04:40]} Nh7 {[%emt 0:07:40]} 27. Ne3 {[%emt 0:05:55]} ({Of course not} 27. Nxf6 Nhxf6 28. Bxf6 Nxf6 29. Rxf6 Qe7 $11) 27... Qf7 {[%emt 0:02:02]} 28. Nf5 {[%emt 0:01:20]} Bxf5 {[%emt 0:00:08]} 29. Rxf5 {[%emt 0:00:02]} Ne7 {[%emt 0:01:41]} 30. R5f2 {[%emt 0:00:00][%cal Rh4f6]} ({Wrong is} 30. Bxf6 $2 Nxf5 31. Bxd8 Ng3+ 32. Kg1 Nxf1 33. Bxf1 Qxh5 $19) 30... f5 {[%emt 0:00:00]} (30... Ng8 $14) 31. exf5 {[%emt 0:00:00] [#] Hoping for f6.} Nf6 {[%emt 0:00:00]} 32. Qd3 {[%emt 0:10:08][%cal Og2g4]} Rdg8 33. Qh3 Rg5 34. Qd3 $2 {[%emt 0:01:00] Weighted Error Value: White=0.08 (flawless) /Black=0.11 (very precise)} ({White should play} 34. Bxg5 $16 Rxg5 35. a4) 1/2-1/2

[Event "Grandiscacchi GM Festival 2022"]
[Site "Montebelluna"]
[Date "2022.05.17"]
[Round "4.2"]
[White "Jobava, Baadur"]
[Black "Rozen, Eytan"]
[Result "1-0"]
[ECO "D94"]
[WhiteElo "2600"]
[BlackElo "2425"]
[Annotator "TA"]
[PlyCount "61"]
[EventDate "2022.05.17"]
[EventType "swiss"]
[EventCountry "ITA"]
[SourceTitle "playchess.com"]
[Source "ChessBase"]
[SourceQuality "1"]
[TimeControl "40/3600+30:1800+30"]

{[%evp 21,61,-17,0,0,0,0,-13,-16,-12,-31,139,147,129,100,204,199,191,200,232,233,240,243,231,239,407,413,601,573,550,551,737,706,707,615,784,778,745,752,2711,2639,2409,2077]} 1. e4 {[%emt 0:06:29]} c6 {[%emt 0:00:19]} 2. d4 {[%emt 0:00:06]} d5 {[%emt 0:00:06]} 3. exd5 {[%emt 0:00:04]} cxd5 {[%emt 0:00:06]} 4. c4 {[%emt 0:00:02]} Nf6 {[%emt 0:00:20]} 5. Nc3 {[%emt 0:00:04]} g6 {[%emt 0:00:30]} 6. c5 {[%emt 0:00:36]} Bg7 {[%emt 0:00:06]} 7. Bb5+ {[%emt 0:00:40]} Bd7 {[%emt 0:01:36]} 8. Be2 {[%emt 0:00:06]} O-O {[%emt 0:00:55]} 9. Nf3 {[%emt 0:00:03]} Nc6 {[%emt 0:01:24]} 10. O-O {[%emt 0:00:06]} Bg4 {[%emt 0:00:24]} 11. Be3 {[%emt 0:00:59]} Ne4 {[%emt 0:01:25]} 12. h3 {[%emt 0:01:22] D94: Grünfeld: 4 Nf3 Bg7 5 e3.} Bxf3 {[%emt 0:06:11]} 13. Bxf3 {[%emt 0:01:34]} f5 {[%emt 0:00:45]} 14. Qb3 {[%emt 0:05:25] The position is equal.} e6 $1 {[%emt 0:03:54]} 15. Bxe4 {[%emt 0:01:41] [#]} dxe4 $146 {[%emt 0:04:46]} (15... fxe4 $15 {keeps the upper hand.} 16. Rad1 Rb8) ({Predecessor:} 15... fxe4 16. Qxb7 Nxd4 17. Rad1 Nf5 18. Bc1 Qc8 19. Qb4 Rf7 20. Ne2 Rb8 21. Qa3 Rb5 22. b4 a5 23. bxa5 Qxc5 24. Qxc5 Rxc5 {0-1 (38) Molchanova,T (2265)-Gochelashvili,D (2427) St Petersburg 2014}) 16. Qxe6+ $16 {[%emt 0:00:30]} Kh8 {[%emt 0:00:02]} 17. Rad1 $36 {[%emt 0:00:44][%mdl 2048] Keeping Black busy. White is more active.} Qh4 {[%emt 0:01:25] [#]} (17... f4 $16) 18. Ne2 $1 $18 {[%emt 0:04:27]} g5 {[%emt 0:08:03] [#]} 19. Ng3 $1 {[%emt 0:02:12]} f4 {[%emt 0:03:17]} 20. Nf5 {[%emt 0:00:04]} ({Not} 20. Nxe4 $2 Rae8 21. g3 Rxe6 $19) 20... Rxf5 {[%emt 0:01:45]} 21. Qxf5 {[%emt 0:00:05]} fxe3 {[%emt 0:00:17]} 22. fxe3 {[%emt 0:00:03]} Nb4 $2 {[%emt 0:01:27]} (22... Re8 23. d5 (23. Qd7 Rg8 $18) 23... Nd8) 23. Qd7 {[%emt 0:04:04]} Qg3 {[%emt 0:02:53]} (23... Rb8 $142 24. Rf7 Qh6) 24. Qxb7 {[%emt 0:00:32] White is clearly winning.} Rb8 {[%emt 0:02:11]} 25. Qxe4 {[%emt 0:00:17]} g4 {[%emt 0:02:40]} 26. hxg4 {[%emt 0:00:22]} Qc7 {[%emt 0:03:00]} 27. Rf3 {[%emt 0:00:57]} Qd7 {[%emt 0:00:43]} 28. Rh3 {[%emt 0:01:05][%csl Gh3][%cal Re4h7]} h6 {[%emt 0:00:06]} 29. d5 {[%emt 0:00:02]} Nxa2 {[%emt 0:00:20]} 30. c6 {[%emt 0:00:00]} Qd6 {[%emt 0:00:00]} 31. Qe6 {[%emt 0:00:00] Weighted Error Value: White=0.10 (very precise) /Black=0.59} 1-0